bitfinex-derivatives/quotes_ETHF0:USTF0_20250902
["timestamp","ask_amount","ask_price","bid_price","bid_amount"]
[1756829839120,3.2078,4300.0,4299.2,3.2078]
[1756829839718,0.4486,4299.9,4299.2,3.2078]
[1756829839922,3.2078,4300.0,4299.3,0.441]
[1756829840117,3.2078,4300.0,4299.2,3.2078]
[1756829840317,0.4486,4299.9,4298.7,3.2078]
[1756829840517,3.3837,4300.0,4298.7,3.2078]
[1756829840518,3.6163,4300.0,4298.7,3.2078]
[1756829840716,3.6163,4300.0,4298.8,0.441]
[1756829840717,0.4486,4299.9,4298.8,0.441]
[1756829840921,0.6926,4299.9,4299.1,0.441]
[1756829841121,3.2078,4300.0,4299.1,0.441]
[1756829841527,3.6564,4300.0,4299.1,0.441]
[1756829841828,3.6564,4300.0,4299.2,0.441]
[1756829842615,3.6564,4300.0,4298.8,0.685]
[1756829842819,0.4486,4299.9,4298.8,0.685]
[1756829843015,0.4486,4299.9,4298.9,0.441]
[1756829843527,3.2078,4300.0,4299.3,3.2078]
[1756829843924,0.4486,4299.9,4299.3,3.2078]
[1756829844520,3.2078,4300.0,4299.4,0.441]
[1756829844721,0.4486,4299.9,4299.3,3.6488]
[1756829845919,3.4518,4300.0,4299.4,0.441]
[1756829846125,3.9004,4300.0,4299.4,0.441]
[1756829847823,3.4518,4300.0,4299.3,3.2078]
[1756829848028,0.4486,4299.9,4299.3,3.2078]
[1756829848825,0.4486,4299.9,4299.3,3.6488]
[1756829849533,0.4486,4299.9,4299.3,0.441]
[1756829850529,3.4518,4300.0,4298.8,0.441]
[1756829850530,0.4486,4299.4,4298.8,0.441]
[1756829850737,0.4486,4299.4,4298.3,30.698]
[1756829850738,3.2078,4299.0,4298.3,0.441]
[1756829851029,0.4486,4298.8,4298.1,0.244]
[1756829851234,0.4486,4298.8,4297.8,0.441]
[1756829852236,3.2078,4298.5,4297.6,3.2078]
[1756829852438,0.244,4298.4,4297.6,3.2078]
[1756829852837,0.4486,4298.3,4297.6,3.2078]
[1756829853136,3.2078,4298.5,4297.1,3.2078]
[1756829853137,0.244,4298.2,4297.1,3.2078]
[1756829853334,0.244,4298.2,4297.2,0.441]
[1756829853735,0.244,4298.2,4297.6,3.2078]
[1756829854132,0.244,4298.2,4297.1,0.23269]
[1756829854133,0.4486,4298.1,4297.2,0.685]
[1756829854339,0.4486,4297.9,4297.2,0.441]
[1756829854643,0.4486,4297.9,4297.1,3.2078]
[1756829854937,3.2078,4298.0,4297.1,3.2078]
[1756829855535,0.4486,4297.9,4297.1,3.2078]
[1756829855840,0.244,4297.8,4297.2,0.441]
[1756829856039,3.2078,4298.0,4297.2,0.441]
[1756829856243,0.244,4298.4,4297.6,3.2078]
[1756829856443,0.244,4298.4,4297.7,0.441]
[1756829857143,0.4486,4298.5,4297.7,0.441]
[1756829857343,0.1759,4299.5,4297.5,0.1732]
[1756829857344,0.244,4298.8,4298.2,0.441]
[1756829857634,3.2078,4299.2,4298.3,0.244]
[1756829857835,3.2078,4299.2,4298.4,0.441]
[1756829858436,3.2078,4299.2,4298.4,0.685]
[1756829858635,3.6564,4299.2,4298.5,0.441]
[1756829858835,3.6564,4299.2,4298.0,0.1732]
[1756829858836,0.4486,4299.1,4298.0,0.441]
[1756829859031,0.4486,4298.9,4298.0,0.1732]
[1756829859334,0.4486,4298.9,4298.1,0.441]
[1756829859838,0.4486,4298.6,4297.9,3.2078]
[1756829860140,3.2078,4298.1,4297.4,3.2078]
[1756829860337,0.4486,4298.0,4297.4,3.2078]
[1756829860537,0.4486,4298.0,4297.3,0.441]
[1756829860739,0.4486,4298.0,4297.0,0.441]
[1756829861137,0.86329,4298.0,4297.0,0.441]
[1756829861343,3.2078,4297.6,4296.6,0.4474]
[1756829861543,0.6799,4297.5,4296.6,0.4474]
[1756829862637,0.86699457,4297.5,4296.6,0.4474]
[1756829862842,0.6799,4297.5,4296.6,0.4474]
[1756829863045,0.244,4297.4,4296.6,0.4474]
[1756829863245,0.4359,4297.3,4296.6,0.4474]
[1756829863744,0.4359,4297.0,4296.4,3.2078]
[1756829864141,0.4359,4297.0,4296.4,3.6552]
[1756829864541,3.2078,4297.1,4296.4,3.2078]
[1756829864733,32.13724679,4298.5,4296.5,0.1755]
[1756829864734,0.4359,4297.5,4296.5,0.1755]
[1756829864947,0.244,4297.4,4296.6,0.4474]
[1756829865447,3.4518,4297.7,4296.6,0.4474]
[1756829865638,3.2078,4297.7,4296.8,0.4474]
[1756829865844,1.24534679,4298.8,4296.7,0.23271]
[1756829865845,3.2078,4299.0,4297.5,0.1755]
[1756829866147,3.2078,4299.0,4298.4,0.4474]
[1756829866340,0.4359,4298.9,4298.4,0.4474]
[1756829866936,0.4359,4298.9,4298.0,3.2078]
[1756829867147,3.2078,4298.5,4297.9,0.4474]
[1756829867347,0.4359,4298.4,4297.5,3.2078]
[1756829867544,0.4359,4298.4,4297.6,0.4474]
[1756829867740,3.2078,4298.5,4297.6,0.4474]
[1756829868353,3.2078,4299.0,4298.1,0.4474]
[1756829869246,3.2078,4299.0,4298.5,3.2078]
[1756829869445,3.2078,4299.0,4298.6,0.4474]
[1756829869642,3.2078,4299.0,4298.5,3.2078]
[1756829869844,3.2078,4299.0,4298.6,0.4474]
[1756829870047,3.6437,4299.0,4298.5,3.2078]
[1756829870248,3.2078,4299.0,4298.5,3.2078]
[1756829870541,0.4359,4299.5,4298.6,0.4474]
[1756829870542,3.6437,4299.5,4298.6,0.4474]
[1756829870751,0.4359,4300.1,4299.0,3.2078]
[1756829870942,0.56986084,4300.0,4299.1,0.4474]
[1756829871142,0.4359,4300.1,4299.1,4.07382]
[1756829871340,0.6799,4300.1,4299.4,3.2078]
[1756829871550,0.6799,4300.1,4299.5,0.4474]
[1756829872248,0.244,4300.0,4299.5,0.4474]
[1756829872441,0.6799,4300.0,4299.0,0.4474]
[1756829872748,0.244,4300.1,4299.4,0.4186]
[1756829872948,0.4359,4300.4,4299.5,0.4474]
[1756829873345,0.4359,4300.4,4299.6,0.4474]
[1756829874250,0.4359,4300.4,4299.6,0.86597]
[1756829874448,0.4359,4300.4,4299.7,0.4474]
[1756829874848,0.4359,4300.4,4299.4,0.244]
[1756829875254,0.4359,4300.4,4299.5,0.4474]
[1756829875551,0.6799,4300.4,4299.5,0.4474]
[1756829876842,0.244,4300.4,4299.3,3.2078]
[1756829877250,0.4359,4300.3,4299.3,3.2078]
[1756829877644,0.244,4300.4,4299.3,3.2078]
[1756829877841,0.4359,4300.3,4299.4,0.4474]
[1756829878240,0.4359,4300.3,4299.6,0.4474]
[1756829879547,0.4359,4300.6,4299.6,0.4474]
[1756829880353,3.6437,4300.6,4299.6,0.4474]
[1756829881651,3.2078,4300.6,4299.9,0.4474]
[1756829883551,0.4359,4300.5,4299.9,0.4474]
[1756829884550,3.2078,4300.6,4299.9,0.4474]
[1756829884757,3.2078,4300.6,4300.1,0.4474]
[1756829885145,0.4359,4300.9,4300.1,0.4474]
[1756829885351,3.4518,4301.1,4300.3,3.6552]
[1756829885553,0.4359,4301.0,4300.3,3.6552]
[1756829885850,0.4359,4301.0,4300.4,0.4474]
[1756829886751,3.2078,4301.1,4300.4,0.4474]
[1756829886945,3.2078,4301.6,4300.8,3.2078]
[1756829887148,0.4359,4301.5,4300.9,0.4474]
[1756829889357,0.244,4301.9,4300.9,0.4474]
[1756829889557,0.4359,4302.0,4301.0,0.1755]
[1756829889856,0.4359,4302.0,4301.1,0.4474]
[1756829890452,0.4359,4302.0,4301.1,0.41843]
[1756829890649,3.2078,4302.1,4301.3,0.4474]
[1756829890856,3.2078,4302.1,4301.4,0.4474]
[1756829891251,0.4359,4302.3,4301.8,0.4468]
[1756829891458,0.4557,4303.3,4302.3,0.4468]
[1756829891660,0.4557,4303.8,4302.9,0.4468]
[1756829891866,0.4557,4303.8,4303.1,0.4468]
[1756829892161,0.4557,4303.8,4303.1,0.6908]
[1756829892361,3.2078,4303.9,4303.1,0.4468]
[1756829892558,0.4557,4303.8,4303.1,0.4468]
[1756829894369,0.4557,4303.2,4302.9,0.4468]
[1756829894567,3.2078,4303.3,4302.9,0.4468]
[1756829894772,3.2078,4303.3,4302.7,0.4468]
[1756829895772,3.2078,4303.3,4302.7,3.6546]
[1756829896671,0.4557,4303.2,4302.6,0.244]
[1756829896877,0.4557,4303.2,4302.3,0.4468]
[1756829901575,0.68811,4303.2,4302.3,0.4468]
[1756829901871,3.4518,4303.3,4301.6,3.2078]
[1756829901872,0.1715,4302.5,4301.6,3.2078]
[1756829902076,0.4557,4302.1,4301.6,3.2078]
[1756829902270,3.2078,4302.2,4301.0,3.2078]
[1756829902472,3.2078,4301.7,4300.5,33.9108]
[1756829902673,0.6272,4301.5,4300.5,3.6546]
[1756829902874,0.4557,4301.4,4300.5,3.2078]
[1756829903078,0.4557,4301.0,4300.0,0.4468]
[1756829903375,0.4557,4301.0,4299.6,3.8986]
[1756829903376,0.4557,4300.5,4299.6,3.8986]
[1756829904176,0.4557,4300.5,4299.7,0.4468]
[1756829906385,0.4557,4301.0,4299.8,0.23254999]
[1756829906680,0.244,4300.9,4300.2,0.4468]
[1756829907468,0.4557,4300.6,4299.9,0.244]
[1756829907674,0.1715,4300.5,4299.6,3.2078]
[1756829907870,0.3601,4300.4,4299.6,3.2078]
[1756829908070,0.4557,4300.3,4299.6,3.2078]
[1756829908274,0.3601,4300.4,4299.7,0.4468]
[1756829908885,0.4557,4300.3,4299.7,0.4468]
[1756829909084,0.4557,4300.3,4299.3,0.244]
[1756829909383,0.4557,4300.3,4299.4,0.4468]
[1756829909984,0.6997,4300.3,4299.4,0.4468]
[1756829910581,3.2078,4300.2,4299.0,3.2078]
[1756829910787,0.4557,4300.1,4299.1,0.4468]
[1756829911178,0.4557,4300.1,4299.2,0.4468]
[1756829911379,0.6997,4300.1,4299.2,0.4468]
[1756829911578,0.4557,4300.1,4299.2,0.4468]
[1756829911783,3.2078,4300.2,4299.2,0.4468]
[1756829911981,3.2078,4300.2,4299.4,0.4468]
[1756829912287,0.4557,4300.1,4299.4,0.4468]
[1756829913282,3.2078,4300.2,4299.5,0.1824]
[1756829913474,0.1161,4300.4,4299.7,0.4468]
[1756829914780,0.1161,4300.4,4300.3,0.4468]
[1756829914981,0.4557,4301.7,4300.4,0.4468]
[1756829915184,3.2078,4302.1,4301.2,0.4468]
[1756829915380,0.4557,4302.2,4301.2,0.4468]
[1756829915581,0.4557,4302.2,4301.6,3.2078]
[1756829915886,0.244,4302.3,4301.7,0.4468]
[1756829916280,3.2078,4302.6,4301.7,0.4468]
[1756829916785,0.4557,4302.5,4301.7,0.4468]
[1756829917490,3.2078,4302.6,4301.7,0.4468]
[1756829917996,0.4557,4302.5,4301.7,0.4468]
[1756829920282,3.2078,4302.6,4301.7,0.6898]
[1756829920585,0.4557,4302.5,4301.7,0.4468]
[1756829920779,0.4557,4302.5,4300.7,0.18510218]
[1756829920780,0.4557,4302.4,4301.1,3.6546]
[1756829920985,0.243,4302.3,4301.1,3.6546]
[1756829921387,0.23247,4302.2,4301.1,3.6546]
[1756829921589,0.4334,4302.1,4301.1,3.6546]
[1756829921784,0.23247,4302.2,4301.1,3.6546]
[1756829921990,0.23247,4302.1,4301.1,3.6546]
[1756829922187,0.243,4302.3,4301.1,3.6546]
[1756829922489,0.243,4302.3,4301.1,3.2078]
[1756829922490,0.4334,4302.1,4301.1,3.2078]
[1756829922681,0.4334,4301.9,4301.1,3.2078]
[1756829922887,3.2078,4301.6,4300.7,0.4308]
[1756829923189,0.4334,4301.5,4300.5,3.2078]
[1756829923493,0.1696,4301.5,4300.5,3.2078]
[1756829923681,3.2078,4301.1,4300.2,0.4308]
[1756829923882,0.6764,4301.0,4300.2,0.4308]
[1756829924183,0.1696,4301.5,4300.2,0.4308]
[1756829924184,0.6764,4301.3,4300.2,0.4308]
[1756829924589,0.4334,4301.0,4300.2,0.4308]
[1756829924889,0.1696,4301.0,4300.0,3.2078]
[1756829925195,0.4334,4300.9,4300.0,3.2078]
[1756829925691,0.1696,4301.0,4300.0,3.2078]
[1756829925892,0.4334,4300.9,4300.1,0.4308]
[1756829926195,0.4334,4301.5,4300.6,0.4308]
[1756829926386,3.2078,4301.6,4301.1,0.4308]
[1756829926793,3.6412,4301.6,4301.0,3.6386]
[1756829928696,0.4334,4301.5,4300.5,3.2078]
[1756829928895,0.1696,4301.5,4300.5,3.2078]
[1756829929098,0.1696,4301.0,4300.0,3.8816]
[1756829929396,0.4334,4300.8,4300.0,3.6386]
[1756829929991,0.4334,4300.8,4300.0,0.4308]
[1756829930193,0.4334,4300.5,4299.5,3.6386]
[1756829930393,0.4334,4300.3,4299.1,0.4308]
[1756829930591,0.4334,4299.8,4299.1,0.4308]
[1756829930792,3.2078,4299.4,4298.6,0.4308]
[1756829930991,0.4334,4299.3,4298.6,0.4308]
[1756829931788,0.4334,4299.3,4298.5,3.2078]
[1756829931789,0.4334,4299.3,4298.1,0.4308]
[1756829932796,3.2078,4298.9,4298.0,3.2078]
[1756829932998,3.2078,4298.4,4297.5,3.6386]
[1756829933198,0.243,4298.3,4297.5,3.6386]
[1756829933603,0.243,4298.3,4297.5,0.4308]
[1756829934197,0.243,4298.3,4297.1,0.4308]
[1756829934399,0.43296277,4298.3,4297.1,0.4308]
[1756829934801,0.4334,4298.2,4297.1,0.4308]
[1756829934998,0.6764,4298.2,4297.1,0.4308]
[1756829935402,0.90909,4298.2,4297.1,0.4308]
[1756829935598,0.23269,4298.1,4297.1,0.4308]
[1756829935795,3.2078,4297.9,4297.1,0.4308]
[1756829937701,0.243,4297.8,4297.1,0.4308]
[1756829937898,3.2078,4297.9,4297.1,0.4308]
[1756829939007,0.243,4298.0,4297.1,0.4308]
[1756829939419,0.243,4298.0,4297.5,0.4308]
[1756829939712,0.4334,4298.2,4297.5,0.4308]
[1756829939907,0.243,4298.1,4297.5,0.1752]
[1756829940105,0.243,4298.1,4297.6,0.4308]
[1756829941198,0.243,4298.4,4297.6,0.4308]
[1756829941405,0.243,4298.4,4298.1,0.4308]
[1756829941603,0.243,4298.6,4298.1,0.4308]
[1756829941907,0.243,4298.6,4298.0,3.6386]
[1756829942104,0.4334,4298.5,4297.6,0.4308]
[1756829942500,3.2078,4298.4,4297.6,0.4308]
[1756829942699,0.4334,4298.3,4297.6,0.4308]
[1756829944003,0.4334,4297.8,4297.3,3.2078]
[1756829944212,3.4508,4297.9,4297.3,3.2078]
[1756829944411,0.4334,4297.8,4296.7,0.4308]
[1756829944711,0.4334,4297.3,4296.7,0.4308]
[1756829945613,0.4334,4297.7,4296.7,0.4308]
[1756829945816,0.243,4297.7,4297.1,0.4308]
[1756829946715,3.6412,4297.9,4297.1,0.4308]
[1756829946903,3.8842,4297.9,4297.1,0.4308]
[1756829947108,3.4508,4297.9,4297.1,0.4308]
[1756829947408,3.2078,4297.3,4295.6,0.4308]
[1756829947608,3.2078,4296.0,4295.5,0.1752]
[1756829947812,3.4528,4296.0,4295.6,0.4308]
[1756829948320,3.4528,4296.0,4295.5,0.1752]
[1756829948510,3.4528,4296.0,4295.6,0.4308]
[1756829948910,3.4528,4296.0,4295.5,0.1752]
[1756829949209,0.245,4296.3,4295.6,0.4308]
[1756829949406,0.245,4296.5,4295.6,0.4308]
[1756829949910,3.2078,4296.6,4296.5,0.1752]
[1756829950117,3.2078,4296.6,4296.5,0.606]
[1756829950409,3.2078,4296.6,4296.0,3.8138]
[1756829950711,3.2078,4296.6,4296.5,0.1752]
[1756829950912,3.2078,4297.1,4296.5,0.1752]
[1756829951218,3.2078,4297.1,4296.6,0.4346]
[1756829951615,3.2078,4297.1,4297.0,0.6033]
[1756829952416,3.2078,4297.1,4297.0,0.4346]
[1756829953017,3.2078,4297.1,4296.2,0.4346]
[1756829953018,7.2078,4297.1,4296.2,0.4346]
[1756829953215,3.2078,4296.3,4296.2,0.4346]
[1756829953413,0.245,4296.6,4296.2,0.4346]
[1756829953613,0.245,4296.6,4296.1,0.4346]
[1756829953808,0.245,4296.6,4296.0,0.1752]
[1756829954210,0.245,4296.6,4296.0,0.6098]
[1756829954809,0.245,4296.6,4296.0,0.1752]
[1756829955012,3.2078,4296.8,4296.6,0.4346]
[1756829955312,0.245,4296.7,4296.6,0.4346]
[1756829958722,0.894,4297.1,4297.0,0.1687]
[1756829959019,0.894,4297.1,4297.0,0.6033]
[1756829960110,1.46342343,4297.1,4296.6,0.4346]
[1756829960314,0.894,4297.1,4296.6,0.4346]
[1756829960524,0.894,4297.1,4297.0,0.6033]
[1756829960725,1.46406651,4297.1,4297.0,0.6033]
[1756829961020,0.57006651,4297.1,4297.0,0.6033]
[1756829961222,0.1163,4297.2,4297.0,0.1687]
[1756829961533,0.1163,4297.2,4297.1,0.4346]
[1756829962209,3.2078,4298.0,4297.1,4.4346]
[1756829962413,1.24534679,4298.5,4297.0,0.1687]
[1756829962414,0.57034478,4297.9,4297.6,0.4346]
[1756829962611,0.57034478,4297.8,4297.6,0.4346]
[1756829962810,3.2078,4298.5,4297.6,0.4346]
[1756829963021,0.57053254,4298.4,4297.6,0.4346]
[1756829963217,0.57053254,4298.3,4298.1,0.4346]
[1756829963421,0.57053254,4298.2,4298.1,0.4346]
[1756829965624,3.2078,4298.5,4298.1,0.4346]
[1756829965819,0.57034838,4298.4,4298.1,0.4346]
[1756829966024,0.57034838,4298.3,4298.1,0.4346]
[1756829966322,3.2078,4298.5,4298.1,0.4346]
[1756829967022,0.244,4299.1,4298.1,0.4346]
[1756829967023,3.2078,4299.0,4298.1,0.4346]
[1756829967217,0.57022316,4298.9,4298.1,0.4346]
[1756829967420,3.2078,4298.5,4297.7,0.4346]
[1756829967621,0.117,4298.3,4297.7,0.4346]
[1756829967818,3.2078,4298.0,4297.2,0.4346]
[1756829968015,0.93122316,4297.9,4297.2,0.4346]
[1756829968220,0.57022316,4297.8,4297.2,0.4346]
[1756829968425,0.57022316,4297.7,4296.5,0.1687]
[1756829968630,0.57022316,4297.6,4296.6,0.4346]
[1756829968832,0.57022316,4297.5,4297.1,0.4346]
[1756829969025,3.2078,4298.0,4297.1,0.4346]
[1756829969230,0.81422435,4297.9,4297.1,0.4346]
[1756829969432,0.57022435,4297.8,4297.5,0.1687]
[1756829969730,0.244,4298.4,4297.6,0.4346]
[1756829970024,0.57019331,4298.3,4297.6,0.4346]
[1756829970221,0.57019331,4298.2,4297.6,0.4346]
[1756829970422,0.57019331,4298.1,4297.6,0.4346]
[1756829970623,0.57019331,4298.0,4297.6,0.4346]
[1756829970830,0.244,4298.4,4297.6,0.4346]
[1756829971031,0.5702106,4298.3,4297.6,0.4346]
[1756829971231,0.5702106,4298.2,4297.6,0.4346]
[1756829971434,0.5702106,4298.2,4297.5,0.6033]
[1756829971435,0.5702106,4298.1,4297.5,0.6033]
[1756829971626,0.244,4298.4,4297.6,0.4346]
[1756829971832,0.57022707,4298.3,4297.6,0.4346]
[1756829972133,0.57022707,4298.2,4297.6,0.4346]
[1756829972428,0.57022707,4298.1,4298.0,0.1687]
[1756829972626,3.2078,4298.5,4298.0,0.1687]
[1756829972938,1.66645062,4299.7,4298.0,0.1687]
[1756829972939,3.2078,4300.2,4298.8,0.41865]
[1756829973130,3.2078,4300.2,4299.3,0.4346]
[1756829973636,0.244,4300.5,4299.8,0.4346]
[1756829974030,0.4361,4300.4,4299.8,0.4346]
[1756829977122,0.244,4300.6,4299.7,3.2078]
[1756829977531,0.4361,4300.5,4299.7,3.2078]
[1756829977727,0.4361,4300.5,4299.7,3.6424]
[1756829977924,3.2078,4300.7,4299.8,0.4346]
[1756829978135,3.2078,4301.2,4300.3,0.4346]
[1756829979035,0.4361,4301.1,4300.3,0.4346]
[1756829979230,0.244,4301.0,4300.3,0.4346]
[1756829979434,3.2078,4300.5,4299.7,3.2078]
[1756829979636,3.2078,4300.5,4299.8,0.4346]
[1756829980228,0.4361,4300.4,4299.8,0.4346]
[1756829983736,3.2078,4300.5,4299.8,0.4346]
[1756829984334,3.2078,4300.5,4300.0,0.6076]
[1756829984638,3.2078,4300.5,4300.0,0.1678]
[1756829985035,3.2078,4300.5,4299.9,3.2078]
[1756829985243,3.2078,4300.5,4300.0,0.4398]
[1756829985439,3.2078,4301.1,4300.0,0.1678]
[1756829985645,0.244,4301.4,4300.6,0.4398]
[1756829986146,0.4268,4301.0,4300.2,3.2078]
[1756829986446,0.4268,4301.0,4300.2,3.6476]
[1756829987759,0.4268,4301.0,4300.0,0.3558]
[1756829987957,3.2078,4301.6,4300.7,0.4398]
[1756829988163,3.2078,4302.1,4301.1,3.2078]
[1756829988459,3.6346,4302.1,4301.2,0.4398]
[1756829992260,0.4268,4303.2,4301.8,0.4398]
[1756829992464,3.2078,4303.8,4303.0,0.1678]
[1756829992766,3.2078,4304.3,4303.6,0.4398]
[1756829993463,3.2078,4304.3,4303.7,0.243]
[1756829993963,3.2078,4304.3,4303.8,0.4398]
[1756829994157,0.4268,4304.8,4303.8,0.4398]
[1756829994558,0.243,4305.0,4304.1,0.4398]
[1756829995163,0.6698,4305.0,4304.1,0.4398]
[1756829998860,3.2078,4305.2,4304.1,0.4398]
[1756829999260,0.4268,4305.1,4304.1,0.4398]
[1756829999863,0.65911001,4305.1,4304.1,0.4398]
[1756830000363,0.4268,4304.5,4303.6,0.4398]
[1756830000967,3.4508,4304.6,4304.0,0.4398]
[1756830000968,3.2078,4304.6,4304.0,0.4398]
[1756830001362,3.6346,4304.6,4304.0,0.4398]
[1756830001967,3.2078,4304.6,4303.4,0.6168]
[1756830002169,0.4268,4304.5,4303.5,0.4398]
[1756830002570,0.4268,4304.5,4303.6,0.4398]
[1756830003271,3.4508,4304.6,4303.6,0.4398]
[1756830003768,0.1397,4306.0,4304.1,0.4398]
[1756830003769,3.2078,4305.2,4304.1,0.4398]
[1756830004063,3.2078,4305.2,4304.2,0.4398]
[1756830004267,0.65911001,4305.1,4304.2,0.4398]
[1756830004571,0.4268,4304.9,4303.9,0.4398]
[1756830005560,3.2078,4304.7,4303.9,0.4398]
[1756830005765,0.4268,4304.6,4303.9,0.4398]
[1756830006459,3.2078,4304.2,4303.4,0.4398]
[1756830006664,3.2078,4304.2,4302.8,3.2078]
[1756830006665,0.4268,4304.1,4302.9,0.4398]
[1756830006966,0.4268,4303.9,4302.9,0.4398]
[1756830007167,0.4268,4303.6,4302.3,3.2078]
[1756830007470,3.2078,4303.7,4302.9,0.4398]
[1756830007772,3.4508,4304.5,4303.6,0.4398]
[1756830008067,0.98944158,4304.4,4303.6,0.4398]
[1756830008268,0.4268,4304.4,4303.6,0.4398]
[1756830008465,0.4268,4304.4,4303.3,3.2078]
[1756830008971,0.4268,4304.2,4303.3,3.2078]
[1756830009270,0.4268,4304.3,4303.3,3.2078]
[1756830009472,0.23235,4304.4,4303.3,3.2078]
[1756830009473,0.4268,4304.0,4303.3,3.2078]
[1756830009861,0.243,4304.1,4303.3,3.2078]
[1756830010067,0.56286504,4304.0,4303.3,3.2078]
[1756830010368,0.56286504,4304.0,4301.5,0.1678]
[1756830010369,0.4268,4303.8,4302.5,3.2078]
[1756830010670,0.4268,4303.8,4301.5,0.1678]
[1756830010671,0.4268,4302.8,4301.6,0.4398]
[1756830010868,0.1385,4303.5,4301.6,0.4398]
[1756830010869,3.2078,4302.2,4301.6,0.4398]
[1756830011462,3.6414,4302.2,4301.6,0.4398]
[1756830011668,0.4336,4302.2,4301.6,0.4398]
[1756830011974,0.4336,4302.1,4301.0,3.6166]
[1756830012165,3.2078,4301.7,4301.0,3.6166]
[1756830012369,0.4336,4301.7,4301.0,3.6166]
[1756830012869,0.56370697,4301.6,4300.5,0.4088]
[1756830013070,0.4336,4301.2,4300.5,0.4088]
[1756830013775,3.4508,4301.3,4300.0,0.4088]
[1756830013776,3.2078,4300.7,4300.0,0.4088]
[1756830013975,3.6414,4300.7,4300.0,0.4088]
[1756830014575,0.56406873,4300.6,4299.7,3.2078]
[1756830014771,0.99766873,4300.5,4299.7,3.2078]
[1756830014971,0.56406873,4300.4,4299.7,3.2078]
[1756830015166,0.56406873,4300.4,4299.8,0.4088]
[1756830015372,3.4508,4301.3,4300.3,0.4088]
[1756830015572,0.4336,4301.1,4300.3,0.4088]
[1756830015772,0.56406985,4301.0,4300.3,0.4088]
[1756830017275,0.4336,4301.1,4300.3,0.4088]
[1756830017471,3.2078,4300.8,4300.3,0.4088]
[1756830017671,0.4336,4300.7,4299.8,0.4088]
[1756830018174,3.4508,4300.8,4299.2,0.6518]
[1756830018175,0.4336,4300.2,4299.2,0.6518]
[1756830018372,0.243,4300.1,4299.2,0.4088]
[1756830019673,0.243,4300.1,4299.4,3.2078]
[1756830019978,0.243,4300.1,4299.5,0.4088]
[1756830022080,0.4336,4300.0,4299.0,0.4088]
[1756830022380,0.243,4300.1,4298.9,3.2078]
[1756830022381,0.4336,4299.5,4298.9,3.2078]
[1756830022575,3.2078,4299.0,4297.8,3.2078]
[1756830022776,3.6414,4299.0,4298.1,0.4088]
[1756830023081,0.1162,4298.9,4298.1,0.4088]
[1756830024272,0.4336,4298.7,4298.1,0.4088]
[1756830025178,0.4336,4298.7,4297.8,3.2078]
[1756830025783,0.4336,4298.7,4297.9,0.4088]
[1756830025978,0.243,4298.6,4297.9,0.4088]
[1756830026178,0.4336,4298.5,4297.9,0.4088]
[1756830027574,0.4336,4298.5,4297.8,3.2078]
[1756830027575,0.1162,4298.9,4298.1,0.4088]
[1756830027778,0.4336,4298.4,4297.8,3.2078]
[1756830028084,0.4336,4297.8,4297.0,0.4088]
[1756830028384,3.4508,4297.9,4297.1,0.4088]
[1756830028685,0.243,4297.9,4297.1,0.4088]
[1756830029080,0.4336,4297.8,4297.1,0.4088]
[1756830029582,0.4336,4297.3,4296.0,3.366]
[1756830029778,0.4336,4296.7,4296.1,0.4088]
[1756830030077,3.2078,4296.8,4295.5,3.366]
[1756830030078,0.4336,4296.5,4295.6,0.4088]
[1756830030476,3.2078,4296.3,4295.6,0.4088]
[1756830030680,0.4336,4296.2,4295.6,0.4088]
[1756830030878,0.62267071,4296.2,4295.6,0.4088]
[1756830031084,0.244,4296.1,4295.6,0.4088]
[1756830031283,0.4336,4296.0,4295.5,3.2078]
[1756830032179,0.4336,4296.0,4295.6,0.4088]
[1756830032691,0.244,4296.1,4295.5,3.2078]
[1756830032882,0.244,4296.1,4295.6,0.4088]
[1756830033079,0.244,4296.1,4295.5,3.2078]
[1756830033280,0.6776,4296.1,4295.4,0.4088]
[1756830033785,0.6776,4296.1,4294.9,3.2078]
[1756830034087,0.4336,4295.7,4294.9,3.2078]
[1756830034288,0.244,4295.6,4294.9,3.2078]
[1756830034584,0.4336,4295.5,4294.9,3.2078]
[1756830034887,0.244,4295.5,4295.4,0.4088]
[1756830036585,0.4336,4295.4,4294.9,3.6166]
[1756830036985,0.244,4295.5,4295.3,0.41323851]
[1756830037185,3.7577,4295.8,4295.4,0.4088]
[1756830037491,0.244,4295.7,4295.4,0.4088]
[1756830037789,0.244,4295.7,4295.3,0.00443851]
[1756830037989,0.4336,4295.6,4295.3,0.00443851]
[1756830038184,0.244,4295.7,4295.4,0.4088]
[1756830038687,0.4336,4295.6,4295.4,0.4088]
[1756830038889,0.244,4295.7,4295.4,0.4088]
[1756830039393,0.244,4295.7,4295.3,0.00443851]
[1756830039986,3.3241,4295.8,4295.4,0.4088]
[1756830040184,0.244,4295.7,4295.4,0.4088]
[1756830040687,0.4336,4295.6,4295.3,0.00443851]
[1756830040987,3.3241,4295.8,4295.4,0.4088]
[1756830041196,3.3241,4295.8,4295.4,0.4248]
[1756830041391,0.1163,4295.8,4295.6,0.4248]
[1756830042294,0.1163,4295.8,4295.7,4.4248]
[1756830042497,3.2078,4296.8,4296.1,0.4248]
[1756830042798,0.244,4297.2,4296.5,3.3796]